bitfinex/quotes_SOLUSD_20220211
["timestamp","ask_amount","ask_price","bid_price","bid_amount"]
[1644621147999,15.6796,95.74,95.64,52.2654]
[1644621148000,1.42461043,95.741,95.659,11.31]
[1644621148199,1.42461043,95.765,95.661,3.8534229]
[1644621148400,0.04652515,95.76,95.667,1.46975499]
[1644621148603,1.42461043,95.773,95.669,1.46975499]
[1644621148799,2.38366791,95.759,95.665,37.08924775]
[1644621148999,15.6805,95.74,95.66,47.4137]
[1644621149400,2.38366791,95.739,95.66,47.4137]
[1644621149999,47.92178891,95.738,95.66,47.4137]
[1644621150900,15.6815,95.73,95.66,63.0952]
[1644621151103,15.6815,95.73,95.638,5.224]
[1644621151403,2.38366791,95.729,95.638,5.224]
[1644621152018,12.97132486,95.728,95.638,5.224]
[1644621152421,2.38366791,95.727,95.638,5.224]
[1644621152818,45.82078143,95.709,95.638,5.224]
[1644621153821,45.82078143,95.709,95.63,15.6868]
[1644621154819,15.6872,95.7,95.631,36.61744039]
[1644621155520,15.6872,95.7,95.63,15.6868]
[1644621157620,15.6872,95.7,95.631,5.226]
[1644621158923,15.6872,95.7,95.64,15.6853]
[1644621159122,45.82078143,95.709,95.64,15.6853]
[1644621161531,15.6856,95.7,95.64,15.6853]
[1644621166940,15.6856,95.7,95.63,20.9132]
[1644621167542,31.2335,95.7,95.63,20.9132]
[1644621168143,12.99596369,95.699,95.63,20.9132]
[1644621168545,48.61882192,95.689,95.63,20.9132]
[1644621170043,48.61882192,95.689,95.63,15.6872]
[1644621172249,15.6869,95.69,95.63,15.6872]
[1644621172448,52.2876,95.72,95.63,15.6872]
[1644621173046,13.0062583,95.718,95.63,15.6872]
[1644621173250,13.0062583,95.718,95.631,5.226]
[1644621173447,15.6842,95.71,95.64,15.6854]
[1644621173847,13.0062583,95.709,95.64,15.6854]
[1644621174252,15.6842,95.71,95.64,15.6854]
[1644621174850,15.6855,95.7,95.64,15.6854]
[1644621175252,48.3327729,95.699,95.64,15.6854]
[1644621176552,15.6869,95.69,95.63,15.6882]
[1644621177453,15.6869,95.69,95.631,38.9982071]
[1644621177655,15.6852,95.7,95.64,15.6852]
[1644621177881,1.42461043,95.729,95.64,15.6852]
[1644621178074,52.2838,95.73,95.64,15.6852]
[1644621178476,2.38366791,95.738,95.64,15.6852]
[1644621178675,1.42461043,95.734,95.643,1.46975499]
[1644621178877,57.38969809,95.737,95.67,15.6811]
[1644621179078,55.96508766,95.737,95.671,49.12694718]
[1644621179287,42.94877988,95.737,95.671,43.90294718]
[1644621179477,1.42461043,95.758,95.671,43.90294718]
[1644621179878,1.42461043,95.758,95.69,15.6769]
[1644621180181,13.03630428,95.757,95.69,15.6769]
[1644621180579,38.08915741,95.756,95.691,35.16947563]
[1644621180981,13.03630428,95.755,95.691,35.16947563]
[1644621181178,13.03630428,95.755,95.71,15.6748]
[1644621181378,13.03630428,95.755,95.711,47.73167865]
[1644621182580,38.08915741,95.756,95.711,47.73167865]
[1644621183382,38.08915741,95.756,95.7,15.6765]
[1644621184386,38.08915741,95.756,95.701,45.77698823]
[1644621184583,15.676,95.76,95.701,45.77698823]
[1644621184782,15.6748,95.77,95.71,15.6752]
[1644621185385,13.05398137,95.769,95.71,15.6752]
[1644621187387,13.05398137,95.769,95.701,45.77698823]
[1644621187797,50.41124901,95.77,95.701,45.77698823]
[1644621187990,15.6748,95.77,95.701,45.77698823]
[1644621188992,45.8053422,95.769,95.701,45.77698823]
[1644621189292,45.8053422,95.769,95.71,15.6742]
[1644621189496,15.6739,95.78,95.71,15.6742]
[1644621189894,13.04341049,95.779,95.71,15.6742]
[1644621190492,42.89941076,95.778,95.71,15.6742]
[1644621190894,13.04341049,95.779,95.71,15.6742]
[1644621191092,0.04652515,95.79,95.71,15.6742]
[1644621191296,0.04652515,95.79,95.711,2.38366791]
[1644621191493,0.04652515,95.79,95.73,15.6705]
[1644621191692,15.6722,95.8,95.73,15.6705]
[1644621191892,15.6722,95.8,95.731,37.12416605]
[1644621192391,13.05446104,95.799,95.731,37.12416605]
[1644621192793,13.05446104,95.799,95.74,15.6694]
[1644621193194,19.08721917,95.809,95.74,15.6694]
[1644621193195,13.05446104,95.819,95.741,7.60366791]
[1644621193594,0.04652515,95.84,95.742,2.38366791]
[1644621193796,0.04652515,95.83,95.742,2.38366791]
[1644621193994,13.05901886,95.839,95.76,15.6632]
[1644621194195,0.04652515,95.83,95.761,42.40941731]
[1644621194395,13.05901886,95.839,95.761,42.40941731]
[1644621194800,13.05901886,95.841,95.761,42.40941731]
[1644621195698,15.6666,95.83,95.761,42.40941731]
[1644621195996,13.05901886,95.829,95.77,15.6641]
[1644621196397,40.31410641,95.827,95.77,15.6641]
[1644621196800,13.05901886,95.826,95.77,15.6641]
[1644621197203,40.31410641,95.827,95.761,42.40941731]
[1644621198501,40.31410641,95.827,95.77,15.6644]
[1644621198703,15.6658,95.83,95.77,15.6644]
[1644621199103,23.56582515,95.85,95.77,15.6644]
[1644621199302,23.5193,95.85,95.77,15.6644]
[1644621199504,13.02863039,95.849,95.77,15.6644]
[1644621199705,38.07842991,95.848,95.77,15.6644]
[1644621200107,13.02863039,95.849,95.77,15.6644]
[1644621200305,26.79479306,95.86,95.762,23.1018]
[1644621200306,13.02863039,95.847,95.79,15.658]
[1644621200705,0.04652515,95.88,95.791,5.218]
[1644621200908,23.1734,95.882,95.773,5.218]
[1644621201107,15.6588,95.87,95.78,52.1933]
[1644621201307,15.6588,95.87,95.792,37.03399681]
[1644621202012,0.04652515,95.88,95.81,15.6577]
[1644621202209,41.45624307,95.881,95.811,45.86715747]
[1644621202412,15.6572,95.88,95.811,45.86715747]
[1644621202807,23.1734,95.882,95.811,45.86715747]
[1644621203011,23.1734,95.882,95.812,5.216]
[1644621203207,23.1734,95.882,95.82,15.6565]
[1644621203407,0.04652515,95.9,95.82,15.6565]
[1644621203808,15.70042515,95.9,95.82,15.6565]
[1644621204009,21.43875713,95.918,95.821,5.215]
[1644621204240,0.04652515,95.91,95.821,5.215]
[1644621204434,13.0465087,95.917,95.85,15.6497]
[1644621204834,13.0465087,95.919,95.851,39.58997753]
[1644621205040,48.37504365,95.918,95.852,45.5333]
[1644621205240,0.04652515,95.93,95.851,34.37597753]
[1644621205435,0.04652515,95.95,95.851,34.37597753]
[1644621205641,0.04652515,95.94,95.851,34.37597753]
[1644621205842,2.38366791,95.949,95.851,34.37597753]
[1644621206035,15.65,95.93,95.851,34.37597753]
[1644621206241,37.37247717,95.929,95.851,34.37597753]
[1644621206439,52.78690455,95.929,95.851,34.37597753]
[1644621206635,50.40323664,95.929,95.851,34.37597753]
[1644621206938,13.03075947,95.928,95.86,15.6492]
[1644621207136,1.47113558,95.95,95.86,15.6492]
[1644621207338,0.04652515,95.94,95.86,15.6492]
[1644621207540,0.04652515,95.96,95.86,15.6492]
[1644621207936,0.04652515,95.96,95.861,50.02206791]
[1644621208139,0.04652515,95.97,95.891,47.90306092]
[1644621208339,43.41028336,95.975,95.891,47.90306092]
[1644621208536,0.04652515,95.98,95.892,5.212]
[1644621209437,2.38366791,95.971,95.891,47.90306092]
[1644621209641,37.86961559,95.97,95.891,47.90306092]
[1644621210438,0.04652515,95.98,95.891,47.90306092]
[1644621210639,22.8614,95.986,95.891,47.90306092]
[1644621211338,40.54789016,95.985,95.892,2.38366791]
[1644621211546,22.8614,95.986,95.9,15.6419]
[1644621212138,0.04652515,95.99,95.9,15.6419]
[1644621212338,15.68662515,96.0,95.901,2.38366791]
[1644621212537,15.68662515,96.0,95.93,15.6375]
[1644621212740,15.6401,96.0,95.931,34.99809336]
[1644621213138,2.38366791,95.999,95.931,34.99809336]
[1644621213543,15.6401,96.0,95.931,34.99809336]
[1644621214538,2.38366791,95.999,95.931,34.99809336]
[1644621214739,58.44075608,96.01,95.931,34.99809336]
[1644621214939,15.6372,96.01,95.931,34.99809336]
[1644621215745,15.6372,96.01,95.931,40.20609336]
[1644621215943,0.04652515,96.02,95.94,15.6357]
[1644621216142,15.6354,96.03,95.941,5.208]
[1644621216345,0.04652515,96.04,95.941,2.38366791]
[1644621216545,0.04652515,96.04,95.942,46.6818]
[1644621216943,2.38366791,96.039,95.95,15.6334]
[1644621217142,0.04652515,96.04,95.95,15.6334]
[1644621217343,0.04652515,96.04,95.951,40.61519654]
[1644621217744,0.04652515,96.04,95.952,2.38366791]
[1644621217947,0.04652515,96.04,95.953,5.208]
[1644621218346,0.04652515,96.04,95.954,2.38366791]
[1644621218846,0.04652515,96.04,95.971,44.66962565]
[1644621219047,47.5821,96.046,95.971,44.66962565]
[1644621219946,47.5821,96.046,95.972,5.207]
[1644621220550,0.04652515,96.06,95.98,15.6287]
[1644621220847,0.04652515,96.07,95.98,15.6287]
[1644621221846,15.67412515,96.07,95.98,15.6287]
[1644621222648,2.38366791,96.049,95.98,15.6287]
[1644621223052,15.67412515,96.07,95.98,15.6287]
[1644621223253,0.04652515,96.07,95.98,15.6287]
[1644621224253,43.32467945,96.068,95.98,15.6287]
[1644621224653,15.67422515,96.07,95.981,5.207]
[1644621224851,0.04652515,96.07,95.99,15.6262]
[1644621225655,37.81922619,96.069,95.991,38.23152863]
[1644621226252,0.04652515,96.07,95.991,38.23152863]
[1644621227052,0.04652515,96.07,96.0,15.6251]
[1644621227251,7.81057771,96.05,96.001,11.0]
[1644621227652,7.81057771,96.05,96.0,15.6251]
[1644621227851,46.59582515,96.08,96.001,11.0]
[1644621228052,46.5493,96.08,96.01,15.6232]
[1644621228255,46.5493,96.08,96.011,20.12233023]
[1644621228455,15.67052515,96.1,96.011,20.12233023]
[1644621228670,0.04652515,96.11,96.011,22.50599814]
[1644621229051,0.04652515,96.11,96.012,2.38366791]
[1644621229853,0.04652515,96.11,96.02,15.6213]
[1644621230259,2.38366791,96.108,96.02,15.6213]
[1644621230459,2.38366791,96.108,96.011,20.12233023]
[1644621231760,15.6227,96.1,96.011,20.12233023]
[1644621232160,2.38366791,96.099,96.011,20.12233023]
[1644621232661,2.38366791,96.099,95.982,5.205]
[1644621232861,0.04652515,96.09,95.956,5.206]
[1644621233064,15.628,96.08,95.97,15.6306]
[1644621233261,15.67452515,96.08,95.971,5.206]
[1644621233466,44.56661742,96.079,95.972,45.87539468]
[1644621233664,46.95028533,96.079,95.973,5.206]
[1644621233965,2.38366791,96.078,95.972,45.87539468]
[1644621234166,15.6301,96.06,95.98,15.6289]
[1644621234365,45.15034422,96.059,95.981,5.206]
[1644621234574,15.6301,96.06,95.973,5.207]
[1644621234971,15.6301,96.06,95.972,45.87539468]
[1644621235379,15.6301,96.06,95.98,15.629]
[1644621235576,15.6271,96.07,95.98,15.629]
[1644621235774,15.6271,96.07,95.981,5.206]
[1644621235976,15.6271,96.07,95.974,46.7796]
[1644621236173,15.6271,96.07,95.975,5.207]
[1644621236375,15.6271,96.07,95.986,1.46975499]
[1644621236579,15.6271,96.07,95.988,12.47846418]
[1644621236785,15.6271,96.07,95.99,15.6271]
[1644621236984,0.04652515,96.08,95.991,5.206]
[1644621237184,15.67172515,96.09,95.991,6.67575499]
[1644621237383,15.67172515,96.09,95.994,1.46975499]
[1644621237582,15.67172515,96.09,95.995,5.206]
[1644621237782,35.19896011,96.089,95.995,9.0594229]
[1644621238002,35.19896011,96.089,95.996,2.38366791]
[1644621238395,35.19896011,96.089,95.995,5.206]
[1644621238600,35.19896011,96.089,95.996,2.38366791]
[1644621238797,2.38366791,96.088,96.01,15.6235]
[1644621238996,2.38366791,96.088,96.011,45.87539468]
[1644621239400,35.19896011,96.089,96.011,45.87539468]
[1644621240197,15.6252,96.08,95.994,1.46975499]
[1644621240398,15.67172515,96.08,95.988,1.46975499]
[1644621240596,2.38366791,96.079,95.979,1.46975499]
[1644621240798,2.38366791,96.079,95.977,1.46975499]
[1644621240997,2.38366791,96.079,95.982,1.46975499]
[1644621241202,2.38366791,96.079,95.983,49.43104023]
[1644621241401,15.6297,96.06,95.986,1.46975499]
[1644621241599,24.7873,96.079,95.989,1.46975499]
[1644621242000,2.38366791,96.078,95.99,5.206]
[1644621242201,24.7873,96.079,95.99,5.206]
[1644621242501,15.6267,96.07,96.0,15.6257]
[1644621242703,15.6267,96.07,96.001,10.39257362]
[1644621242900,15.6267,96.07,95.991,5.206]
[1644621243101,2.38366791,96.069,95.988,1.46975499]
[1644621243300,2.38366791,96.069,95.982,1.46975499]
[1644621243502,0.04652515,96.06,95.972,1.46975499]
[1644621243803,15.6329,96.05,95.971,1.46975499]
[1644621244002,36.50509762,96.049,95.976,1.46975499]
[1644621244201,38.88876553,96.049,95.976,1.46975499]
[1644621244401,38.88876553,96.049,95.969,1.46975499]
[1644621244605,2.38366791,96.048,95.966,1.46975499]
[1644621244801,2.38366791,96.048,95.956,1.46975499]
[1644621245002,0.04652515,96.04,95.953,1.46975499]
[1644621245203,0.04652515,96.04,95.965,1.46975499]
[1644621245402,36.50509762,96.049,95.923,4.67076659]
[1644621245403,2.38366791,96.039,95.966,37.76294217]
[1644621245604,11.87366791,96.039,95.966,39.23269716]
[1644621245804,15.6341,96.03,95.966,37.76294217]
[1644621246006,42.39606251,96.029,95.966,37.76294217]
[1644621246205,42.39606251,96.029,95.959,1.46975499]
[1644621246407,2.38366791,96.028,95.959,1.46975499]
[1644621246803,2.38366791,96.028,95.958,1.46975499]
[1644621247004,2.38366791,96.028,95.931,7.61914831]
[1644621247005,15.6384,96.02,95.956,1.46975499]
[1644621247205,15.6384,96.02,95.953,38.83210975]
[1644621247407,2.38366791,96.019,95.953,38.83210975]
[1644621247606,2.38366791,96.019,95.953,37.36235476]
[1644621248004,2.38366791,96.019,95.954,1.46975499]
[1644621248205,2.38366791,96.019,95.953,38.83210975]
[1644621248505,2.38366791,96.019,95.953,37.36235476]
[1644621248705,2.38366791,96.019,95.952,1.46975499]
[1644621248910,15.639,96.0,95.948,1.46975499]
[1644621249107,15.639,96.0,95.945,1.46975499]
[1644621249410,0.04652515,96.01,95.944,1.46975499]
[1644621249612,0.04652515,96.01,95.945,1.46975499]
[1644621249809,2.38366791,96.009,95.946,1.46975499]
[1644621250012,15.6409,96.0,95.947,1.46975499]
[1644621250310,15.6409,96.0,95.942,40.01610434]
[1644621251108,35.72757203,95.999,95.942,40.01610434]
[1644621251314,15.64,95.99,95.942,40.01610434]
[1644621253717,15.64,95.99,95.943,2.38366791]
[1644621253915,15.6378,96.0,95.943,2.38366791]
[1644621255617,15.6378,96.0,95.944,5.208]
[1644621256817,15.6378,96.0,95.943,2.38366791]
[1644621258020,15.6378,96.0,95.942,40.01610434]
[1644621258217,23.6578,96.0,95.942,40.01610434]
[1644621259519,15.6394,95.99,95.942,40.01610434]
[1644621267234,15.6394,95.99,95.943,2.38366791]
[1644621267625,15.6375,96.0,95.943,2.38366791]
[1644621269830,15.6375,96.0,95.942,40.01610434]
[1644621272354,0.04652515,96.01,95.942,40.01610434]
[1644621272552,15.68252515,96.01,95.943,7.59166791]
[1644621272955,15.68252515,96.01,95.944,2.38366791]
[1644621273153,0.04652515,96.01,95.945,5.208]
[1644621273353,47.48272289,96.027,95.945,5.208]
[1644621273551,15.68102515,96.02,95.95,15.6355]
[1644621273752,15.6345,96.02,95.95,15.6355]
[1644621273955,15.6345,96.02,95.951,2.38366791]
[1644621274250,15.68102515,96.02,95.952,5.208]
[1644621274451,15.6345,96.02,95.952,5.208]
[1644621274654,15.6345,96.02,95.953,2.38366791]
[1644621274954,15.6345,96.02,95.968,0.04915153]
[1644621275153,1.42461043,96.029,95.97,15.6331]
[1644621275453,0.04652515,96.04,95.971,5.208]
[1644621275654,1.42461043,96.053,95.971,2.38366791]
[1644621275951,1.42461043,96.053,95.972,7.59066791]
[1644621276153,0.04652515,96.05,95.973,18.33775452]
[1644621276352,58.78332102,96.052,95.973,20.72142243]
[1644621276552,13.24636959,96.049,95.974,2.38366791]
[1644621276754,15.6321,96.04,95.98,15.6321]
[1644621277457,15.6321,96.04,95.981,2.38366791]
[1644621278455,15.6321,96.04,95.98,15.6321]
[1644621278854,15.6321,96.04,95.981,2.38366791]
[1644621281060,15.6321,96.04,95.98,15.6321]
[1644621282865,15.6321,96.04,95.973,18.33775452]
[1644621283264,15.6346,96.03,95.973,18.33775452]
[1644621283467,45.449866,96.029,95.973,18.33775452]
[1644621284272,45.449866,96.029,95.97,15.6342]
[1644621284871,15.6346,96.02,95.97,15.6342]
[1644621285471,15.6346,96.02,95.968,0.04915153]
[1644621293278,15.6346,96.02,95.97,15.6345]
[1644621296779,2.0,96.0,95.97,15.6345]
[1644621301285,2.0,96.0,95.968,0.04915153]
[1644621302694,17.6374,96.0,95.968,0.04915153]
[1644621304498,2.0,96.0,95.968,0.04915153]
[1644621304699,2.0,96.0,95.968,1.51890652]
[1644621304901,2.0,96.0,95.973,1.46975499]
[1644621305100,2.0,96.0,95.974,6.67775499]
[1644621305302,0.04652515,96.04,95.981,11.0]
[1644621305519,19.325521,96.066,95.968,0.04915153]
[1644621305520,0.04652515,96.06,95.99,15.6284]
[1644621305717,45.19610069,96.065,95.99,15.6284]
[1644621305917,13.27504184,96.059,95.99,15.6284]
[1644621306118,13.27504184,96.059,95.991,2.38366791]
[1644621306317,0.04652515,96.08,95.996,1.46975499]
[1644621306519,0.04652515,96.08,95.997,1.46975499]
[1644621306719,0.04652515,96.08,95.999,1.46975499]
[1644621306917,15.67062515,96.09,96.01,15.6257]
[1644621307217,37.76115396,96.089,96.011,23.84488074]
[1644621307420,37.76115396,96.089,96.011,26.22854865]
[1644621307718,13.2896113,96.088,96.012,7.58866791]
[1644621307918,0.04880409,96.08,96.012,2.38366791]
[1644621308119,37.76115396,96.089,96.013,7.58866791]
[1644621308325,37.76115396,96.089,96.013,2.38366791]
[1644621308326,15.67450409,96.08,96.013,2.38366791]
[1644621308627,15.6257,96.08,96.014,2.38366791]
[1644621308819,15.67450409,96.08,96.009,5.205]
[1644621309720,15.67450409,96.08,96.003,5.205]
[1644621310222,15.67450409,96.08,96.01,15.6274]
[1644621310420,15.67450409,96.08,96.002,17.97405065]
[1644621310421,15.6257,96.08,96.011,5.205]
[1644621310621,15.6257,96.08,96.002,17.97405065]
[1644621310622,15.67450409,96.08,96.003,5.206]
[1644621311826,15.67450409,96.08,96.021,35.86951366]
[1644621312028,15.6257,96.08,96.021,35.86951366]
[1644621312231,15.6257,96.08,96.02,15.6256]
[1644621312827,37.76115396,96.089,96.02,15.6256]
[1644621318831,37.76115396,96.089,96.02,20.8306]
[1644621321036,15.6239,96.09,96.021,5.205]
[1644621321238,0.04880409,96.1,96.04,15.6208]
[1644621321437,11.57970409,96.123,96.04,15.6208]
[1644621321635,11.57970409,96.123,96.041,29.0293]
[1644621321836,11.57970409,96.123,96.041,26.20996791]
[1644621322035,39.73943564,96.122,96.041,23.8263]
[1644621322236,15.6194,96.12,96.041,23.8263]
[1644621323838,15.6194,96.12,96.05,15.6208]
[1644621324744,2.38366791,96.119,96.05,15.6208]
[1644621324939,15.622,96.11,96.05,15.6208]
[1644621326041,15.622,96.11,96.041,23.8263]
[1644621326042,2.38366791,96.109,96.041,23.8263]
[1644621326344,15.6226,96.1,96.041,23.8263]
[1644621326741,43.99345266,96.099,96.041,23.8263]
[1644621327243,15.6237,96.09,95.999,1.46975499]
[1644621327441,15.6237,96.09,95.993,1.46975499]
[1644621327640,15.6237,96.09,95.985,1.46975499]
[1644621327842,2.38366791,96.089,95.985,1.46975499]
[1644621328040,2.38366791,96.089,95.987,36.2023919]
[1644621328241,2.38366791,96.089,95.988,31.36385499]
[1644621328540,0.04885799,96.08,95.988,29.8941]
[1644621329342,15.6284,96.07,96.0,15.6287]
[1644621329641,43.68731066,96.069,96.0,15.6287]
[1644621330041,52.14695799,96.08,96.001,5.206]
[1644621330244,52.14695799,96.08,96.001,29.6811]
[1644621330440,15.6272,96.07,96.01,15.6272]
[1644621331043,15.6272,96.07,96.011,22.15146696]
[1644621332142,15.6255,96.08,96.011,22.15146696]
[1644621332544,15.6255,96.08,96.012,5.205]
[1644621333543,15.6255,96.08,96.011,22.15146696]
[1644621334147,15.6255,96.08,96.011,23.62122195]
[1644621334343,15.6255,96.08,96.012,1.46975499]
[1644621334543,15.6255,96.08,96.011,23.62122195]
[1644621334945,15.6255,96.08,96.011,22.15146696]
[1644621335450,15.6255,96.08,96.011,23.62122195]
[1644621335944,15.6255,96.08,96.012,1.46975499]
[1644621336147,15.6255,96.08,96.011,22.15146696]
[1644621336545,15.6255,96.08,96.013,1.46975499]
[1644621336946,15.6255,96.08,96.016,1.46975499]
[1644621337348,15.6255,96.08,96.017,5.205]
[1644621337549,15.6255,96.08,96.02,15.6259]
[1644621338356,15.6255,96.08,96.02,17.09565499]
[1644621338554,15.6255,96.08,96.022,1.46975499]
[1644621339378,15.6255,96.08,96.023,1.46975499]
[1644621340586,15.6255,96.08,96.024,1.46975499]
[1644621340781,0.04885799,96.1,96.03,15.6244]
[1644621341077,0.04885799,96.11,96.031,6.67375499]
[1644621341279,0.04885799,96.12,96.035,1.46975499]
[1644621341477,0.04885799,96.11,96.036,36.2023919]
[1644621341678,0.04885799,96.12,96.036,41.4063919]
[1644621341880,0.04885799,96.11,96.036,43.79005981]
[1644621342077,15.6207,96.11,96.05,15.6207]
[1644621342278,15.66955799,96.11,96.051,22.15146696]
[1644621342479,15.6207,96.11,96.051,27.35446696]
[1644621342877,15.6207,96.11,96.051,5.203]
[1644621343281,2.38366791,96.109,96.041,1.46975499]
[1644621343578,15.6249,96.09,96.032,22.6858]
[1644621343877,40.30033686,96.089,96.033,36.3801754]
[1644621344679,15.6255,96.08,96.033,36.3801754]
[1644621344879,15.6255,96.08,96.032,22.6858]
[1644621346082,40.30033686,96.089,96.032,22.6858]
[1644621346883,15.6243,96.09,96.032,22.6858]
[1644621347687,15.6223,96.1,96.032,27.8908]
[1644621347885,15.6223,96.1,96.033,1.46975499]
[1644621348084,15.6223,96.1,96.034,5.204]
[1644621348484,15.6223,96.1,96.033,6.67375499]
[1644621348684,15.6223,96.1,96.04,15.6231]
[1644621348884,15.6223,96.1,96.041,5.204]
[1644621349985,15.6223,96.1,96.035,1.46975499]
[1644621350194,15.918,96.104,96.05,15.6215]
[1644621351288,15.918,96.104,96.051,13.79046336]
[1644621351488,15.918,96.104,96.06,15.6173]
[1644621351690,15.918,96.104,96.061,5.203]
[1644621351891,15.918,96.104,96.06,15.6173]
[1644621352091,15.918,96.104,96.061,5.203]
[1644621352488,0.04885799,96.12,96.051,13.79046336]
[1644621352489,0.04885799,96.12,96.052,5.203]
[1644621352689,10.39927257,96.158,96.07,15.6182]
[1644621352893,15.5502,96.199,96.101,1.46975499]
[1644621353093,48.3233,96.227,96.071,10.5255611]
[1644621353094,15.5974,96.211,96.133,1.46975499]
[1644621353290,48.3233,96.227,96.141,1.46975499]
[1644621353492,48.3233,96.227,96.142,5.198]
[1644621353693,36.69567711,96.253,96.159,1.46975499]
[1644621353893,15.9022,96.255,96.159,1.46975499]
[1644621354095,15.9022,96.255,96.167,1.46975499]
[1644621354298,15.9022,96.255,96.175,1.46975499]
[1644621354498,1.42461043,96.275,96.174,1.46975499]
[1644621354701,47.5308,96.29,96.155,23.75875111]
[1644621354702,1.42461043,96.282,96.18,1.46975499]
[1644621354900,43.391357,96.274,96.18,1.46975499]
[1644621355099,43.391357,96.274,96.184,1.46975499]
[1644621355298,43.391357,96.274,96.175,16.17413127]
[1644621355503,43.391357,96.274,96.181,2.38366791]
[1644621355698,43.391357,96.274,96.175,13.79046336]
[1644621356396,43.391357,96.274,96.18,15.598]
[1644621357101,2.38366791,96.273,96.175,13.79046336]
[1644621357499,15.5986,96.27,96.175,13.79046336]
[1644621357901,2.38366791,96.269,96.175,13.79046336]
[1644621358500,15.6005,96.26,96.175,13.79046336]
[1644621358803,2.38366791,96.269,96.176,7.57966791]
[1644621358999,15.7089,96.298,96.176,7.57966791]
[1644621359000,2.38366791,96.29,96.176,7.57966791]
[1644621359200,2.38366791,96.29,96.222,0.04902191]
[1644621359804,40.00247187,96.289,96.222,0.04902191]
[1644621360204,42.38613978,96.289,96.222,0.04902191]
[1644621360704,15.5965,96.28,96.222,0.04902191]
[1644621361508,40.00247187,96.289,96.222,0.04902191]
[1644621362207,15.7089,96.298,96.222,0.04902191]
[1644621362706,15.5943,96.29,96.222,0.04902191]
[1644621363307,15.7089,96.298,96.222,0.04902191]
[1644621363509,2.38366791,96.289,96.222,0.04902191]
[1644621364110,41.08420762,96.29,96.222,0.04902191]
[1644621364313,15.7089,96.298,96.222,0.04902191]
[1644621364912,15.7089,96.298,96.223,2.38366791]
[1644621365113,15.7089,96.298,96.222,0.04902191]
[1644621365311,45.3360367,96.292,96.224,13.79046336]
[1644621365611,15.7089,96.298,96.224,18.98446336]
[1644621365810,51.9747,96.33,96.225,2.38366791]
[1644621366010,15.5564,96.312,96.226,5.194]
[1644621366416,15.5564,96.312,96.227,2.38366791]
[1644621366611,63.3037,96.358,96.227,2.38366791]
[1644621366612,15.5879,96.34,96.231,11.0]
[1644621366813,1.42461043,96.415,96.24,0.48]
[1644621367013,15.2767,96.415,96.241,5.189]
[1644621367312,15.2767,96.415,96.241,41.71829071]
[1644621367512,15.2767,96.415,96.242,39.61575161]
[1644621367513,46.05533938,96.414,96.242,39.61575161]
[1644621367816,15.0779,96.41,96.26,0.48]
[1644621368014,34.20701545,96.414,96.261,5.19]
[1644621368313,34.20701545,96.414,96.263,13.79046336]
[1644621368512,0.04956603,96.4,96.263,13.79046336]
[1644621368712,0.04956603,96.4,96.264,25.37522507]
[1644621368913,0.04956603,96.4,96.265,23.8801]
[1644621369112,0.04956603,96.4,96.266,5.19]
[1644621369315,0.04956603,96.4,96.3,15.5733]
[1644621369614,0.04956603,96.4,96.301,23.23697223]
[1644621369816,0.04956603,96.43,96.301,23.23697223]
[1644621370014,349.07251441,96.425,96.301,23.23697223]
[1644621370216,0.04956603,96.42,96.302,20.18522507]
[1644621370417,0.04956603,96.41,96.302,20.18522507]
[1644621370628,0.04956603,96.41,96.303,20.18522507]
[1644621370814,0.04956603,96.41,96.331,13.79046336]
[1644621371023,0.04956603,96.42,96.331,13.79046336]
[1644621371214,0.04956603,96.41,96.331,13.79046336]
[1644621371521,2.38366791,96.409,96.266,5.188]
[1644621371719,0.04956603,96.4,96.266,5.188]
[1644621371915,0.04956603,96.4,96.27,15.5802]
[1644621372118,0.04956603,96.42,96.271,5.19]
[1644621372316,0.04956603,96.39,96.272,5.189]
[1644621372516,0.04956603,96.41,96.29,0.48]
[1644621372715,0.04956603,96.38,96.292,4.65847819]
[1644621373017,0.04956603,96.4,96.293,5.19]
[1644621373215,0.04956603,96.38,96.31,15.5713]
[1644621373415,0.04956603,96.39,96.311,5.188]
[1644621373615,45.80175879,96.392,96.312,32.3689574]
[1644621373819,0.04956603,96.39,96.312,32.3689574]
[1644621374215,0.04956603,96.39,96.313,5.189]